[Event "Late-Titled-Tuesday-Blitz-May-14-2024"]
[Site "Chess.com"]
[Date "2024.05.14"]
[Round "11"]
[White "PNEPaul"]
[Black "shirovin"]
[Result "1/2-1/2"]
[WhiteElo "1910"]
[BlackElo "2087"]
[TimeControl "180+1"]
[EndTime "16:01:49 PDT"]
[Termination "Game drawn by repetition"]

1. e4 {[%clk 0:02:47.7]} 1... Nf6 {[%clk 0:02:57.2]} 2. Bc4 {[%clk 0:02:46.6]}
2... Nxe4 {[%clk 0:02:51.8]} 3. Bxf7+ {[%clk 0:02:45.9]} 3... Kxf7 {[%clk
0:02:50.2]} 4. Qh5+ {[%clk 0:02:44.9]} 4... Kg8 {[%clk 0:02:40]} 5. Qd5+ {[%clk
0:02:39.6]} 5... e6 {[%clk 0:02:40.1]} 6. Qxe4 {[%clk 0:02:39.3]} 6... Be7
{[%clk 0:02:32.2]} 7. Nf3 {[%clk 0:02:39]} 7... Bf6 {[%clk 0:02:31]} 8. d4
{[%clk 0:02:38]} 8... Nc6 {[%clk 0:02:29.2]} 9. c3 {[%clk 0:02:37.6]} 9... g6
{[%clk 0:02:12.8]} 10. Bf4 {[%clk 0:02:29.9]} 10... Kg7 {[%clk 0:02:11.7]} 11.
Nbd2 {[%clk 0:02:28.3]} 11... Re8 {[%clk 0:02:07.4]} 12. O-O-O {[%clk 0:02:23]}
12... d6 {[%clk 0:01:55.5]} 13. Qe3 {[%clk 0:02:15.3]} 13... Bd7 {[%clk
0:01:53.2]} 14. Ne4 {[%clk 0:02:14.7]} 14... e5 {[%clk 0:01:14.4]} 15. dxe5
{[%clk 0:02:10.9]} 15... Nxe5 {[%clk 0:01:07.9]} 16. Nxf6 {[%clk 0:01:58]} 16...
Qxf6 {[%clk 0:01:06.7]} 17. Bxe5 {[%clk 0:01:50]} 17... dxe5 {[%clk 0:00:59.2]}
18. Rxd7+ {[%clk 0:01:47.3]} 18... Kg8 {[%clk 0:00:57.4]} 19. Rhd1 {[%clk
0:01:32.6]} 19... e4 {[%clk 0:00:52.9]} 20. Qh6 {[%clk 0:01:17.5]} 20... exf3
{[%clk 0:00:45.7]} 21. Qxh7+ {[%clk 0:01:12]} 21... Kf8 {[%clk 0:00:44]} 22.
Qh6+ {[%clk 0:01:08.8]} 22... Kg8 {[%clk 0:00:42.9]} 23. Qh7+ {[%clk 0:01:08]}
23... Kf8 {[%clk 0:00:42.5]} 24. Qh6+ {[%clk 0:01:08.3]} 24... Kg8 {[%clk
0:00:41.1]} 25. Qh7+ {[%clk 0:01:08.4]} 1/2-1/2

[Event "Late-Titled-Tuesday-Blitz-May-14-2024"]
[Site "Chess.com"]
[Date "2024.05.14"]
[Round "11"]
[White "hsd2016"]
[Black "merinasian"]
[Result "0-1"]
[WhiteElo "2310"]
[BlackElo "2494"]
[TimeControl "180+1"]
[EndTime "16:01:50 PDT"]
[Termination "merinasian won by resignation"]

1. e4 {[%clk 0:03:00.9]} 1... d6 {[%clk 0:02:31.1]} 2. d4 {[%clk 0:03:00.3]}
2... Nd7 {[%clk 0:02:29.8]} 3. Be3 {[%clk 0:02:56.4]} 3... g6 {[%clk 0:02:28.8]}
4. Nc3 {[%clk 0:02:55.7]} 4... Bg7 {[%clk 0:02:29.2]} 5. Bc4 {[%clk 0:02:55.2]}
5... a6 {[%clk 0:02:27.9]} 6. h3 {[%clk 0:02:55.6]} 6... b5 {[%clk 0:02:27.2]}
7. Bb3 {[%clk 0:02:55.7]} 7... Bb7 {[%clk 0:02:26.9]} 8. Nf3 {[%clk 0:02:54.7]}
8... e6 {[%clk 0:02:26.8]} 9. a3 {[%clk 0:02:47.7]} 9... Ngf6 {[%clk 0:02:24]}
10. e5 {[%clk 0:02:40.1]} 10... dxe5 {[%clk 0:02:17.8]} 11. dxe5 {[%clk
0:02:41]} 11... Ne4 {[%clk 0:02:17.9]} 12. Nxe4 {[%clk 0:02:34]} 12... Bxe4
{[%clk 0:02:18.8]} 13. Bg5 {[%clk 0:01:31.1]} 13... Bxf3 {[%clk 0:02:14.8]} 14.
Qxf3 {[%clk 0:01:28.8]} 14... Nxe5 {[%clk 0:02:07.6]} 15. Qg3 {[%clk 0:01:24.2]}
15... Qd4 {[%clk 0:01:53.8]} 16. O-O {[%clk 0:01:20.7]} 16... O-O {[%clk
0:01:52]} 17. c3 {[%clk 0:01:19.9]} 17... Qb6 {[%clk 0:01:44.6]} 18. Rfe1 {[%clk
0:01:14.7]} 18... Nc4 {[%clk 0:01:33.9]} 19. Bxc4 {[%clk 0:01:11.5]} 19... bxc4
{[%clk 0:01:34.1]} 20. Re2 {[%clk 0:01:12.4]} 20... h6 {[%clk 0:01:28.8]} 21.
Be3 {[%clk 0:01:12]} 21... Qb3 {[%clk 0:01:27.1]} 22. h4 {[%clk 0:01:05.6]}
22... Rad8 {[%clk 0:01:26.6]} 23. h5 {[%clk 0:01:05]} 23... Rd1+ {[%clk
0:01:25.2]} 24. Kh2 {[%clk 0:01:00.3]} 24... Rxa1 {[%clk 0:01:23.2]} 25. hxg6
{[%clk 0:01:00.8]} 25... Qd1 {[%clk 0:01:21.3]} 26. gxf7+ {[%clk 0:00:47.9]}
26... Rxf7 {[%clk 0:01:21.2]} 27. Qg4 {[%clk 0:00:47.9]} 27... h5 {[%clk
0:01:13.8]} 28. Qxh5 {[%clk 0:00:45.7]} 28... Qh1+ {[%clk 0:01:13.4]} 0-1

[Event "Late-Titled-Tuesday-Blitz-May-14-2024"]
[Site "Chess.com"]
[Date "2024.05.14"]
[Round "11"]
[White "BestestBP"]
[Black "Boninknights"]
[Result "1-0"]
[WhiteElo "2228"]
[BlackElo "2377"]
[TimeControl "180+1"]
[EndTime "16:01:52 PDT"]
[Termination "BestestBP won by resignation"]

1. c4 {[%clk 0:03:00.9]} 1... Nc6 {[%clk 0:02:57.2]} 2. d4 {[%clk 0:02:56.9]}
2... e5 {[%clk 0:02:56.5]} 3. d5 {[%clk 0:02:57.2]} 3... Nce7 {[%clk 0:02:55.4]}
4. Nc3 {[%clk 0:02:55.9]} 4... Ng6 {[%clk 0:02:54.4]} 5. Nf3 {[%clk 0:02:55.3]}
5... Nf6 {[%clk 0:02:49]} 6. e3 {[%clk 0:02:54.3]} 6... Bb4 {[%clk 0:02:46.4]}
7. Qb3 {[%clk 0:02:51.6]} 7... a5 {[%clk 0:02:42.2]} 8. a3 {[%clk 0:02:50.1]}
8... Bxc3+ {[%clk 0:02:41.1]} 9. Qxc3 {[%clk 0:02:51]} 9... d6 {[%clk
0:02:39.5]} 10. Qc2 {[%clk 0:02:48.9]} 10... a4 {[%clk 0:02:34.8]} 11. Bd3
{[%clk 0:02:48.2]} 11... O-O {[%clk 0:02:31.6]} 12. O-O {[%clk 0:02:47.5]} 12...
Qe7 {[%clk 0:02:24.7]} 13. Bf5 {[%clk 0:02:38.2]} 13... e4 {[%clk 0:02:12]} 14.
Nd4 {[%clk 0:02:31.9]} 14... Bxf5 {[%clk 0:01:51.9]} 15. Nxf5 {[%clk 0:02:32.8]}
15... Qe5 {[%clk 0:01:51.2]} 16. Ng3 {[%clk 0:02:32.9]} 16... h5 {[%clk
0:01:44.3]} 17. Bd2 {[%clk 0:02:32.1]} 17... h4 {[%clk 0:01:41.7]} 18. Bc3
{[%clk 0:02:32.5]} 18... Qe8 {[%clk 0:01:34.5]} 19. Nf5 {[%clk 0:02:08.1]} 19...
Nh5 {[%clk 0:01:27.4]} 20. Qe2 {[%clk 0:01:52.9]} 20... Nf6 {[%clk 0:01:14.2]}
21. Bxf6 {[%clk 0:01:37]} 21... gxf6 {[%clk 0:01:10.7]} 22. Qh5 {[%clk
0:01:37.6]} 22... Qe5 {[%clk 0:01:06.5]} 23. f4 {[%clk 0:01:29.8]} 23... exf3
{[%clk 0:01:03.2]} 24. Rxf3 {[%clk 0:01:29.8]} 24... Ne7 {[%clk 0:00:54.8]} 25.
Nxe7+ {[%clk 0:01:04.3]} 25... Qxe7 {[%clk 0:00:51.6]} 26. Qg4+ {[%clk
0:01:04.2]} 1-0

[Event "Late-Titled-Tuesday-Blitz-May-14-2024"]
[Site "Chess.com"]
[Date "2024.05.14"]
[Round "11"]
[White "balack95"]
[Black "SoCalJuniorChess"]
[Result "1-0"]
[WhiteElo "2454"]
[BlackElo "2203"]
[TimeControl "180+1"]
[EndTime "16:02:09 PDT"]
[Termination "balack95 won by resignation"]

1. Nh3 {[%clk 0:03:00.9]} 1... Nf6 {[%clk 0:02:58.7]} 2. g3 {[%clk 0:03:01]}
2... d5 {[%clk 0:02:58.6]} 3. Bg2 {[%clk 0:03:01.8]} 3... c5 {[%clk 0:02:56.4]}
4. O-O {[%clk 0:03:02.2]} 4... Nc6 {[%clk 0:02:56.1]} 5. c4 {[%clk 0:03:02]}
5... d4 {[%clk 0:02:54.8]} 6. d3 {[%clk 0:02:58.3]} 6... e5 {[%clk 0:02:54.6]}
7. f4 {[%clk 0:02:56.7]} 7... Be7 {[%clk 0:02:52.6]} 8. fxe5 {[%clk 0:02:51.6]}
8... Nxe5 {[%clk 0:02:51.5]} 9. Nf4 {[%clk 0:02:52.2]} 9... O-O {[%clk
0:02:49.7]} 10. h3 {[%clk 0:02:52.2]} 10... Rb8 {[%clk 0:02:46.3]} 11. Nd2
{[%clk 0:02:49.8]} 11... b6 {[%clk 0:02:46]} 12. Nf3 {[%clk 0:02:48.1]} 12...
Nxf3+ {[%clk 0:02:38]} 13. Bxf3 {[%clk 0:02:47.5]} 13... Bb7 {[%clk 0:02:36.8]}
14. Bd2 {[%clk 0:02:38.8]} 14... Bd6 {[%clk 0:02:35.1]} 15. Kg2 {[%clk
0:02:30.8]} 15... Re8 {[%clk 0:02:30.1]} 16. Rc1 {[%clk 0:02:18.1]} 16... g5
{[%clk 0:02:24.8]} 17. Nd5 {[%clk 0:02:17.6]} 17... Nxd5 {[%clk 0:02:25.3]} 18.
cxd5 {[%clk 0:02:13.8]} 18... Re5 {[%clk 0:02:24.4]} 19. e4 {[%clk 0:02:08.5]}
19... dxe3 {[%clk 0:02:22.2]} 20. Bc3 {[%clk 0:02:09.1]} 20... e2 {[%clk
0:01:49.1]} 21. Bxe2 {[%clk 0:02:07.3]} 21... Bxd5+ {[%clk 0:01:48.9]} 22. Bf3
{[%clk 0:02:01.8]} 22... Rf5 {[%clk 0:01:49.1]} 23. Bxd5 {[%clk 0:01:40.7]}
23... Rxd5 {[%clk 0:01:50]} 24. Qf3 {[%clk 0:01:38.8]} 24... Be5 {[%clk
0:01:40.1]} 25. Qxf7+ {[%clk 0:01:37.7]} 25... Kh8 {[%clk 0:01:40]} 26. Rf5
{[%clk 0:01:21.3]} 26... Bxc3 {[%clk 0:01:32.8]} 27. Rxd5 {[%clk 0:01:08.9]}
27... Qf6 {[%clk 0:01:22.4]} 28. Qxf6+ {[%clk 0:01:05.9]} 28... Bxf6 {[%clk
0:01:23.3]} 29. b3 {[%clk 0:01:06.2]} 29... Rb7 {[%clk 0:01:21.7]} 30. Re1
{[%clk 0:01:04.7]} 30... Kg7 {[%clk 0:01:19.3]} 31. Re6 {[%clk 0:01:02]} 31...
h6 {[%clk 0:01:18.2]} 32. Rdd6 {[%clk 0:00:54.4]} 32... Bd4 {[%clk 0:01:11.8]}
33. Rg6+ {[%clk 0:00:53.4]} 33... Kf7 {[%clk 0:01:10.8]} 34. Rxh6 {[%clk
0:00:53.8]} 34... Ke7 {[%clk 0:01:11.1]} 35. Rh7+ {[%clk 0:00:52.6]} 35... Kxd6
{[%clk 0:01:10.8]} 36. Rxb7 {[%clk 0:00:53.5]} 1-0

[Event "Late-Titled-Tuesday-Blitz-May-14-2024"]
[Site "Chess.com"]
[Date "2024.05.14"]
[Round "11"]
[White "Mikayel99"]
[Black "super_emi_26"]
[Result "1/2-1/2"]
[WhiteElo "2653"]
[BlackElo "2858"]
[TimeControl "180+1"]
[EndTime "16:02:16 PDT"]
[Termination "Game drawn by repetition"]

1. e4 {[%clk 0:03:00.9]} 1... g6 {[%clk 0:03:00.9]} 2. Nf3 {[%clk 0:02:55.9]}
2... Bg7 {[%clk 0:03:01.8]} 3. d4 {[%clk 0:02:55.7]} 3... d6 {[%clk 0:03:02.5]}
4. Nc3 {[%clk 0:02:56]} 4... Nf6 {[%clk 0:03:03]} 5. Be2 {[%clk 0:02:56]} 5...
O-O {[%clk 0:03:02.5]} 6. O-O {[%clk 0:02:56.4]} 6... Bg4 {[%clk 0:03:02.9]} 7.
h3 {[%clk 0:02:56.2]} 7... Bxf3 {[%clk 0:03:03.1]} 8. Bxf3 {[%clk 0:02:57.1]}
8... Nc6 {[%clk 0:03:03.6]} 9. d5 {[%clk 0:02:54]} 9... Ne5 {[%clk 0:03:04.1]}
10. Be2 {[%clk 0:02:54.7]} 10... c6 {[%clk 0:03:04.8]} 11. f4 {[%clk 0:02:51.4]}
11... Ned7 {[%clk 0:03:04.9]} 12. dxc6 {[%clk 0:02:37.7]} 12... bxc6 {[%clk
0:03:05.8]} 13. Be3 {[%clk 0:02:36.8]} 13... Qa5 {[%clk 0:03:05.7]} 14. Qd2
{[%clk 0:02:32.1]} 14... Rab8 {[%clk 0:03:04.4]} 15. Rab1 {[%clk 0:02:21.6]}
15... Rfd8 {[%clk 0:03:03.5]} 16. b3 {[%clk 0:02:12.6]} 16... Nc5 {[%clk
0:02:56.1]} 17. Bd3 {[%clk 0:01:53.2]} 17... Qa3 {[%clk 0:02:53.3]} 18. e5
{[%clk 0:01:33.8]} 18... dxe5 {[%clk 0:02:51.6]} 19. fxe5 {[%clk 0:01:34.7]}
19... Nfe4 {[%clk 0:02:45.2]} 20. Nxe4 {[%clk 0:01:29.8]} 20... Nxe4 {[%clk
0:02:45.8]} 21. Qc1 {[%clk 0:01:12.7]} 21... Qxc1 {[%clk 0:02:44.1]} 22. Rbxc1
{[%clk 0:01:11.8]} 22... Nc3 {[%clk 0:02:44.7]} 23. e6 {[%clk 0:01:07.4]} 23...
f5 {[%clk 0:02:44.2]} 24. Bxa7 {[%clk 0:01:06.1]} 24... Ra8 {[%clk 0:02:42.9]}
25. Bc5 {[%clk 0:01:01.5]} 25... Bf6 {[%clk 0:02:43.2]} 26. a4 {[%clk
0:00:57.6]} 26... Bd4+ {[%clk 0:02:35.4]} 27. Bxd4 {[%clk 0:00:57]} 27... Rxd4
{[%clk 0:02:36.3]} 28. Rfe1 {[%clk 0:00:52.8]} 28... Kg7 {[%clk 0:02:36.4]} 29.
Re5 {[%clk 0:00:47.8]} 29... Kf6 {[%clk 0:02:36.2]} 30. Rc5 {[%clk 0:00:46.2]}
30... Na2 {[%clk 0:02:36]} 31. Ra1 {[%clk 0:00:43.5]} 31... Nb4 {[%clk
0:02:36.4]} 32. c3 {[%clk 0:00:40.1]} 32... Rxd3 {[%clk 0:02:26.4]} 33. cxb4
{[%clk 0:00:40.3]} 33... Rxb3 {[%clk 0:02:26.8]} 34. Rc4 {[%clk 0:00:32.6]}
34... Ra6 {[%clk 0:02:25]} 35. a5 {[%clk 0:00:29.7]} 35... Kxe6 {[%clk
0:02:25.1]} 36. Rac1 {[%clk 0:00:27.6]} 36... Kd7 {[%clk 0:02:23.4]} 37. Rd1+
{[%clk 0:00:27.8]} 37... Kc7 {[%clk 0:02:21.8]} 38. Re1 {[%clk 0:00:28.2]} 38...
Kd6 {[%clk 0:02:21.3]} 39. Rd1+ {[%clk 0:00:28.6]} 39... Ke5 {[%clk 0:02:15.8]}
40. Re1+ {[%clk 0:00:28.5]} 40... Kd5 {[%clk 0:02:15.3]} 41. Rc5+ {[%clk
0:00:28.4]} 41... Kd6 {[%clk 0:02:15.3]} 42. Rd1+ {[%clk 0:00:28.9]} 42... Kc7
{[%clk 0:02:15.6]} 43. Re5 {[%clk 0:00:27.2]} 43... Rxb4 {[%clk 0:02:04.8]} 44.
Rxe7+ {[%clk 0:00:27.1]} 44... Kc8 {[%clk 0:02:05.1]} 45. Re8+ {[%clk
0:00:23.1]} 45... Kc7 {[%clk 0:02:03.4]} 46. Re7+ {[%clk 0:00:20.9]} 46... Kc8
{[%clk 0:02:03.8]} 47. Re8+ {[%clk 0:00:14.4]} 47... Kc7 {[%clk 0:02:04.3]} 48.
Re7+ {[%clk 0:00:11.5]} 1/2-1/2

[Event "Late-Titled-Tuesday-Blitz-May-14-2024"]
[Site "Chess.com"]
[Date "2024.05.14"]
[Round "11"]
[White "LeninGuerra"]
[Black "marik_spb"]
[Result "1-0"]
[WhiteElo "2658"]
[BlackElo "2500"]
[TimeControl "180+1"]
[EndTime "16:02:31 PDT"]
[Termination "LeninGuerra won by resignation"]

1. e4 {[%clk 0:03:00.3]} 1... c6 {[%clk 0:02:59.8]} 2. Nf3 {[%clk 0:03:00]} 2...
d5 {[%clk 0:03:00.6]} 3. exd5 {[%clk 0:03:00.9]} 3... cxd5 {[%clk 0:03:01.3]} 4.
Ne5 {[%clk 0:03:01.3]} 4... Nc6 {[%clk 0:02:56.5]} 5. Bb5 {[%clk 0:03:01.2]}
5... Qc7 {[%clk 0:02:56]} 6. Bxc6+ {[%clk 0:03:00.5]} 6... bxc6 {[%clk
0:02:55.9]} 7. Qe2 {[%clk 0:03:01.1]} 7... Nf6 {[%clk 0:02:54.7]} 8. O-O {[%clk
0:03:00.4]} 8... Bf5 {[%clk 0:02:51.1]} 9. d3 {[%clk 0:02:59.6]} 9... e6 {[%clk
0:02:50.7]} 10. b3 {[%clk 0:03:00]} 10... Bd6 {[%clk 0:02:50.6]} 11. Bb2 {[%clk
0:03:00.5]} 11... O-O {[%clk 0:02:47]} 12. Nd2 {[%clk 0:03:00.3]} 12... Nd7
{[%clk 0:02:43.7]} 13. Rfe1 {[%clk 0:02:51.1]} 13... Nxe5 {[%clk 0:02:40.6]} 14.
Bxe5 {[%clk 0:02:49.6]} 14... Bxe5 {[%clk 0:02:41.5]} 15. Qxe5 {[%clk 0:02:50]}
15... Qxe5 {[%clk 0:02:42.3]} 16. Rxe5 {[%clk 0:02:50.6]} 16... f6 {[%clk
0:02:36.3]} 17. Re2 {[%clk 0:02:48.8]} 17... Kf7 {[%clk 0:02:34.9]} 18. f4
{[%clk 0:02:40.7]} 18... Rfe8 {[%clk 0:02:27.4]} 19. Kf2 {[%clk 0:02:40.4]}
19... e5 {[%clk 0:02:21.1]} 20. fxe5 {[%clk 0:02:41.3]} 20... Rxe5 {[%clk
0:02:18.6]} 21. Rae1 {[%clk 0:02:40]} 21... Rae8 {[%clk 0:02:17.2]} 22. Rxe5
{[%clk 0:02:39.1]} 22... fxe5 {[%clk 0:02:10.9]} 23. Nf3 {[%clk 0:02:39.4]}
23... Kf6 {[%clk 0:02:10.8]} 24. d4 {[%clk 0:02:39.3]} 24... e4 {[%clk
0:01:44.7]} 25. Ne5 {[%clk 0:02:20.7]} 25... c5 {[%clk 0:01:44.7]} 26. c3 {[%clk
0:02:13.4]} 26... cxd4 {[%clk 0:01:43.1]} 27. cxd4 {[%clk 0:02:14.3]} 27... Rc8
{[%clk 0:00:36.9]} 28. Ke3 {[%clk 0:02:12.3]} 28... Rc2 {[%clk 0:00:32.2]} 29.
Re2 {[%clk 0:02:11.7]} 29... Rc1 {[%clk 0:00:20.8]} 30. g4 {[%clk 0:02:09.1]}
30... Bc8 {[%clk 0:00:18.1]} 31. h4 {[%clk 0:02:08.9]} 31... Be6 {[%clk
0:00:13.4]} 32. Rf2+ {[%clk 0:02:08.1]} 32... Ke7 {[%clk 0:00:13.7]} 33. Kf4
{[%clk 0:02:04.9]} 33... Rd1 {[%clk 0:00:13.1]} 34. Rc2 {[%clk 0:02:00.5]} 34...
Rxd4 {[%clk 0:00:11.2]} 35. Nc6+ {[%clk 0:01:59.7]} 35... Kd6 {[%clk 0:00:10]}
36. Nxd4 {[%clk 0:02:00.6]} 36... Bd7 {[%clk 0:00:10.5]} 37. Ke3 {[%clk
0:01:59.7]} 37... Bxg4 {[%clk 0:00:09.3]} 38. Rc6+ {[%clk 0:01:58.3]} 38... Ke5
{[%clk 0:00:09.8]} 39. Ra6 {[%clk 0:01:58.1]} 39... h6 {[%clk 0:00:09.5]} 40.
Rxa7 {[%clk 0:01:57.5]} 40... g5 {[%clk 0:00:10.2]} 41. hxg5 {[%clk 0:01:57]}
41... hxg5 {[%clk 0:00:11.1]} 42. a4 {[%clk 0:01:56.8]} 42... Bc8 {[%clk
0:00:09.7]} 43. Rc7 {[%clk 0:01:55.8]} 43... Ba6 {[%clk 0:00:07.2]} 44. b4
{[%clk 0:01:56.1]} 44... g4 {[%clk 0:00:07.7]} 45. b5 {[%clk 0:01:56.3]} 45...
g3 {[%clk 0:00:07.6]} 46. bxa6 {[%clk 0:01:55.8]} 1-0

[Event "Late-Titled-Tuesday-Blitz-May-14-2024"]
[Site "Chess.com"]
[Date "2024.05.14"]
[Round "11"]
[White "th3d4rkness"]
[Black "maracayo"]
[Result "1-0"]
[WhiteElo "2202"]
[BlackElo "2344"]
[TimeControl "180+1"]
[EndTime "16:02:37 PDT"]
[Termination "th3d4rkness won by resignation"]

1. e4 {[%clk 0:03:00.9]} 1... c5 {[%clk 0:02:58.3]} 2. Nc3 {[%clk 0:03:00.1]}
2... Nc6 {[%clk 0:02:57.7]} 3. Bb5 {[%clk 0:02:59.6]} 3... g6 {[%clk 0:02:55.3]}
4. Bxc6 {[%clk 0:02:58.9]} 4... bxc6 {[%clk 0:02:54.8]} 5. f4 {[%clk 0:02:59]}
5... Bg7 {[%clk 0:02:54.2]} 6. Nf3 {[%clk 0:02:57.8]} 6... d5 {[%clk 0:02:54.1]}
7. e5 {[%clk 0:02:56.3]} 7... c4 {[%clk 0:02:53.4]} 8. O-O {[%clk 0:02:54.3]}
8... Nh6 {[%clk 0:02:52.9]} 9. b3 {[%clk 0:02:48.9]} 9... Nf5 {[%clk 0:02:41.3]}
10. bxc4 {[%clk 0:02:37.7]} 10... Ba6 {[%clk 0:02:40.4]} 11. Kh1 {[%clk
0:02:34.4]} 11... h5 {[%clk 0:02:38.5]} 12. cxd5 {[%clk 0:02:27.8]} 12... h4
{[%clk 0:02:36.8]} 13. Re1 {[%clk 0:02:10.1]} 13... cxd5 {[%clk 0:02:26.2]} 14.
d3 {[%clk 0:01:57.8]} 14... Rc8 {[%clk 0:02:22.6]} 15. Ne2 {[%clk 0:01:55.6]}
15... d4 {[%clk 0:02:12.1]} 16. c4 {[%clk 0:01:51.4]} 16... Bb7 {[%clk
0:01:58.5]} 17. Qa4+ {[%clk 0:01:46.6]} 17... Kf8 {[%clk 0:01:57.7]} 18. Qxa7
{[%clk 0:01:44.1]} 18... Qd7 {[%clk 0:01:46]} 19. h3 {[%clk 0:01:35.2]} 19...
Ng3+ {[%clk 0:01:23.8]} 20. Nxg3 {[%clk 0:01:25.7]} 20... hxg3 {[%clk
0:01:24.7]} 21. Kg1 {[%clk 0:01:13.9]} 21... g5 {[%clk 0:00:35.5]} 22. Nxg5
{[%clk 0:01:06]} 22... Qc6 {[%clk 0:00:31.4]} 23. Ne4 {[%clk 0:01:01.8]} 23...
f5 {[%clk 0:00:19.7]} 24. exf6 {[%clk 0:01:01.4]} 24... Bxf6 {[%clk 0:00:19.9]}
25. Rb1 {[%clk 0:00:58.7]} 25... Ba8 {[%clk 0:00:19]} 26. Rb6 {[%clk 0:00:55.5]}
1-0

[Event "Late-Titled-Tuesday-Blitz-May-14-2024"]
[Site "Chess.com"]
[Date "2024.05.14"]
[Round "11"]
[White "NikitaShnadrygin"]
[Black "Nf3c5"]
[Result "1-0"]
[WhiteElo "2753"]
[BlackElo "2550"]
[TimeControl "180+1"]
[EndTime "16:02:41 PDT"]
[Termination "NikitaShnadrygin won by checkmate"]

1. e4 {[%clk 0:03:00.9]} 1... c5 {[%clk 0:02:58.7]} 2. Nf3 {[%clk 0:03:00.1]}
2... Nc6 {[%clk 0:02:58.2]} 3. d4 {[%clk 0:03:00.6]} 3... cxd4 {[%clk
0:02:58.5]} 4. Nxd4 {[%clk 0:03:01.5]} 4... e5 {[%clk 0:02:57.5]} 5. Nb5 {[%clk
0:03:01.5]} 5... d6 {[%clk 0:02:52.7]} 6. N1c3 {[%clk 0:03:01.5]} 6... a6 {[%clk
0:02:49.9]} 7. Na3 {[%clk 0:03:02.2]} 7... Be6 {[%clk 0:02:50.2]} 8. Nd5 {[%clk
0:03:02.3]} 8... Bxd5 {[%clk 0:02:50]} 9. exd5 {[%clk 0:03:00.8]} 9... Nce7
{[%clk 0:02:48.7]} 10. c4 {[%clk 0:02:59.4]} 10... g6 {[%clk 0:02:30]} 11. Be2
{[%clk 0:02:59]} 11... Bg7 {[%clk 0:02:30.3]} 12. O-O {[%clk 0:02:59.7]} 12...
Nf6 {[%clk 0:02:30.7]} 13. b4 {[%clk 0:02:49.4]} 13... a5 {[%clk 0:02:23.8]} 14.
Bd2 {[%clk 0:02:48.7]} 14... axb4 {[%clk 0:02:23.7]} 15. Bxb4 {[%clk 0:02:49.6]}
15... b6 {[%clk 0:02:23.7]} 16. Nb5 {[%clk 0:02:49.9]} 16... Nc8 {[%clk
0:02:18.3]} 17. a4 {[%clk 0:02:47.2]} 17... O-O {[%clk 0:02:17.6]} 18. Qb3
{[%clk 0:02:36.8]} 18... Ne4 {[%clk 0:02:16.9]} 19. Qa3 {[%clk 0:02:37.3]} 19...
Nc5 {[%clk 0:02:16.7]} 20. a5 {[%clk 0:02:37.7]} 20... e4 {[%clk 0:02:10.7]} 21.
Ra2 {[%clk 0:02:36.9]} 21... f5 {[%clk 0:02:08.6]} 22. Rb1 {[%clk 0:02:29.6]}
22... f4 {[%clk 0:02:03.8]} 23. Bg4 {[%clk 0:02:29.4]} 23... Qe7 {[%clk
0:02:02]} 24. Bxc5 {[%clk 0:02:25.9]} 24... bxc5 {[%clk 0:02:00.6]} 25. Bxc8
{[%clk 0:02:24.3]} 25... Raxc8 {[%clk 0:01:56.1]} 26. a6 {[%clk 0:02:24.7]}
26... e3 {[%clk 0:01:52.9]} 27. fxe3 {[%clk 0:02:25.6]} 27... fxe3 {[%clk
0:01:42.8]} 28. Re1 {[%clk 0:02:26.2]} 28... Rf2 {[%clk 0:01:36.2]} 29. a7
{[%clk 0:02:20]} 29... Ra8 {[%clk 0:01:13.2]} 30. Rxf2 {[%clk 0:02:09.6]} 30...
exf2+ {[%clk 0:01:12.4]} 31. Kxf2 {[%clk 0:02:10.5]} 31... Rf8+ {[%clk
0:01:12.4]} 32. Qf3 {[%clk 0:02:09.3]} 32... Rxf3+ {[%clk 0:00:58.3]} 33. gxf3
{[%clk 0:02:10.2]} 33... Qd8 {[%clk 0:00:36.1]} 34. Nc7 {[%clk 0:02:05.7]} 34...
Qh4+ {[%clk 0:00:33.2]} 35. Kf1 {[%clk 0:01:59.2]} 35... Qxc4+ {[%clk
0:00:28.3]} 36. Kg1 {[%clk 0:01:55.8]} 36... Bd4+ {[%clk 0:00:10.1]} 37. Kh1
{[%clk 0:01:56]} 37... Qc2 {[%clk 0:00:08.6]} 38. a8=Q+ {[%clk 0:01:56.9]} 38...
Kg7 {[%clk 0:00:08.8]} 39. Ne6+ {[%clk 0:01:54.5]} 39... Kh6 {[%clk 0:00:08.7]}
40. Qf8+ {[%clk 0:01:54.7]} 40... Kh5 {[%clk 0:00:08.6]} 41. Qf4 {[%clk
0:01:46.5]} 41... Qf2 {[%clk 0:00:06.5]} 42. Qg3 {[%clk 0:01:40.9]} 42... Qd2
{[%clk 0:00:01.2]} 43. Qh3# {[%clk 0:01:41.1]} 1-0

[Event "Late-Titled-Tuesday-Blitz-May-14-2024"]
[Site "Chess.com"]
[Date "2024.05.14"]
[Round "11"]
[White "dealshark"]
[Black "ShahMatKanal"]
[Result "1-0"]
[WhiteElo "2525"]
[BlackElo "2382"]
[TimeControl "180+1"]
[EndTime "16:02:41 PDT"]
[Termination "dealshark won by resignation"]

1. e4 {[%clk 0:03:00.9]} 1... c5 {[%clk 0:02:50.2]} 2. c3 {[%clk 0:03:00.7]}
2... e6 {[%clk 0:02:42.3]} 3. d4 {[%clk 0:03:00.2]} 3... d5 {[%clk 0:02:42.1]}
4. exd5 {[%clk 0:02:58.7]} 4... exd5 {[%clk 0:02:41.9]} 5. Nf3 {[%clk
0:02:58.7]} 5... Nc6 {[%clk 0:02:40.6]} 6. Bb5 {[%clk 0:02:56.5]} 6... Be7
{[%clk 0:02:36.4]} 7. dxc5 {[%clk 0:02:54.9]} 7... Bxc5 {[%clk 0:02:34.9]} 8.
O-O {[%clk 0:02:55.8]} 8... Ne7 {[%clk 0:02:34.3]} 9. Nbd2 {[%clk 0:02:56.5]}
9... O-O {[%clk 0:02:32.8]} 10. Nb3 {[%clk 0:02:57.1]} 10... Bd6 {[%clk
0:02:30.9]} 11. h3 {[%clk 0:02:54.4]} 11... Bf5 {[%clk 0:02:22.8]} 12. Re1
{[%clk 0:02:52.9]} 12... a6 {[%clk 0:02:20.7]} 13. Bd3 {[%clk 0:02:53]} 13...
Bg6 {[%clk 0:02:07.5]} 14. Be3 {[%clk 0:02:49.2]} 14... Nf5 {[%clk 0:01:59.8]}
15. Bxf5 {[%clk 0:02:42.5]} 15... Bxf5 {[%clk 0:01:59]} 16. Qd2 {[%clk
0:02:38.7]} 16... Qd7 {[%clk 0:01:46.2]} 17. Bf4 {[%clk 0:02:18.9]} 17... Be7
{[%clk 0:01:40.5]} 18. Nbd4 {[%clk 0:02:15.6]} 18... Be6 {[%clk 0:01:15.8]} 19.
Rad1 {[%clk 0:02:12]} 19... Bf6 {[%clk 0:01:09.6]} 20. Ne5 {[%clk 0:02:08.3]}
20... Nxe5 {[%clk 0:01:01.6]} 21. Bxe5 {[%clk 0:02:08.6]} 21... Be7 {[%clk
0:00:53.8]} 22. Bg3 {[%clk 0:02:03.3]} 22... Rfe8 {[%clk 0:00:52.5]} 23. Qf4
{[%clk 0:01:56.2]} 23... Bf6 {[%clk 0:00:48.6]} 24. Re3 {[%clk 0:01:50.5]} 24...
Bxd4 {[%clk 0:00:43.4]} 25. Rxd4 {[%clk 0:01:44.1]} 25... Qb5 {[%clk 0:00:41.1]}
26. b3 {[%clk 0:01:38.3]} 26... Rac8 {[%clk 0:00:40.3]} 27. h4 {[%clk
0:01:25.9]} 27... Qa5 {[%clk 0:00:37]} 28. Qf3 {[%clk 0:01:14.8]} 28... Qxa2
{[%clk 0:00:35.3]} 29. b4 {[%clk 0:01:11.6]} 29... h6 {[%clk 0:00:27.7]} 30. h5
{[%clk 0:01:10.3]} 30... Rc4 {[%clk 0:00:18.4]} 31. Be5 {[%clk 0:01:07.2]} 31...
Rxd4 {[%clk 0:00:17.6]} 32. Bxd4 {[%clk 0:01:07.1]} 32... Qb1+ {[%clk
0:00:17.9]} 33. Kh2 {[%clk 0:01:06.7]} 33... Qf5 {[%clk 0:00:18.8]} 34. Qxf5
{[%clk 0:01:03.2]} 1-0